bitfinex/quotes_ETHUSD_20250107
["timestamp","ask_amount","ask_price","bid_price","bid_amount"]
[1736289044093,0.05219641,3375.5,3375.0,0.8009]
[1736289044288,0.0075,3375.4,3375.1,35.0]
[1736289044890,0.27410694,3375.3,3375.1,35.0]
[1736289045097,0.27410694,3375.3,3375.1,35.47525435]
[1736289045297,0.27410694,3375.3,3375.2,3.79330636]
[1736289045479,0.27410694,3375.7,3375.2,2.99240162]
[1736289045680,0.27410694,3375.7,3375.6,3.76333]
[1736289045862,0.27410694,3375.7,3375.6,38.76333]
[1736289046064,0.28160694,3375.7,3375.6,35.8009]
[1736289046402,0.27410694,3375.7,3375.6,35.8009]
[1736289046596,0.27410694,3375.7,3375.6,38.76333]
[1736289047299,0.27410694,3375.7,3375.6,35.8009]
[1736289047300,0.28160694,3375.7,3375.6,35.8009]
[1736289047706,0.28160694,3375.7,3375.6,36.20199745]
[1736289048003,0.28160694,3375.7,3375.6,39.16442745]
[1736289049264,0.28160694,3375.7,3375.6,1.20199745]
[1736289049880,0.28160694,3375.7,3375.6,1.79122642]
[1736289050188,0.28160694,3375.7,3375.6,4.75365642]
[1736289050374,0.28160694,3375.7,3375.6,4.78327756]
[1736289051609,0.0075,3375.7,3375.6,4.78327756]
[1736289053362,0.0075,3375.7,3375.6,39.78327756]
[1736289053566,0.0075,3375.7,3375.6,39.75365642]
[1736289054774,0.02833863,3376.7,3376.0,0.8069]
[1736289054966,0.27442189,3376.6,3376.0,0.8069]
[1736289055466,0.31026052,3376.5,3376.0,0.8069]
[1736289055668,0.28192189,3376.5,3376.0,0.8069]
[1736289055904,0.3278061,3376.4,3376.0,1.18678468]
[1736289056217,0.0075,3376.3,3376.2,3.748]
[1736289056709,0.0075,3376.9,3376.2,0.7861]
[1736289056927,0.03583863,3376.9,3376.2,1.36597764]
[1736289057095,0.0075,3376.7,3376.2,1.36597764]
[1736289057594,0.0075,3376.7,3376.2,1.83676987]
[1736289057794,0.0075,3376.5,3376.3,0.02961506]
[1736289058379,0.06233771,3376.4,3376.3,0.02961506]
[1736289058583,0.0075,3376.4,3376.3,2.99143506]
[1736289059206,0.0075,3376.4,3376.3,3.76283506]
[1736289059409,0.0075,3376.4,3376.3,4.49331133]
[1736289060299,0.0075,3376.4,3376.3,4.46369627]
[1736289060601,0.0075,3376.4,3376.3,39.46369627]
[1736289061717,0.234,3377.4,3376.6,2.96148]
[1736289061932,0.234,3377.4,3376.7,0.7714]
[1736289062230,0.234,3377.4,3376.7,3.73285]
[1736289062231,0.0075,3377.3,3376.7,3.73285]
[1736289062395,0.0075,3377.3,3376.8,35.02961059]
[1736289062396,0.33763096,3377.3,3376.8,35.02961059]
[1736289062597,0.33013096,3377.3,3376.9,0.8258]
[1736289062837,0.05613253,3377.3,3377.0,2.96113]
[1736289063036,4.44124014,3378.0,3377.1,3.78689]
[1736289063235,0.06364913,3377.2,3377.1,3.78689]
[1736289063438,0.0075,3377.2,3377.1,3.78689]
[1736289063935,0.0075,3377.2,3377.1,38.78689]
[1736289064139,0.0075,3377.2,3377.1,39.62536355]
[1736289064282,0.234,3378.1,3377.4,2.96084]
[1736289064644,0.0075,3377.9,3377.4,2.96084]
[1736289064798,0.0075,3377.9,3377.5,0.8258]
[1736289064999,2.99625863,3377.9,3377.1,35.0]
[1736289065315,0.0075,3377.7,3377.1,35.0]
[1736289065520,0.0075,3377.7,3376.5,0.8258]
[1736289065521,0.0075,3377.1,3376.5,0.8258]
[1736289065701,0.03583863,3377.1,3376.5,0.8258]
[1736289065894,0.0075,3377.0,3376.2,0.8258]
[1736289066088,0.28171033,3377.0,3376.2,0.8258]
[1736289066417,0.0075,3376.8,3376.2,0.8258]
[1736289067414,0.0075,3376.6,3376.2,0.8258]
[1736289067620,0.0075,3376.6,3376.3,35.0]
[1736289068300,0.02833863,3377.0,3376.3,35.0]
[1736289068724,0.06411374,3376.9,3376.3,35.0]
[1736289069634,0.06411374,3376.9,3376.3,37.96181]
[1736289069941,0.27433844,3376.8,3376.4,2.9912648]
[1736289070143,0.27433844,3376.8,3376.2,3.78766]
[1736289070144,0.0075,3376.8,3376.2,3.78766]
[1736289070598,0.0075,3376.6,3376.3,35.0]
[1736289072036,0.0075,3376.9,3376.3,35.0]
[1736289072536,0.02833863,3377.0,3376.3,35.0]
[1736289072537,0.0075,3376.7,3376.3,35.0]
[1736289072941,0.0075,3376.9,3376.3,35.0]
[1736289073145,0.0075,3376.9,3376.3,37.96179]
[1736289073439,0.0075,3376.7,3376.3,37.96179]
[1736289074190,0.0075,3377.0,3376.3,35.0]
[1736289074412,0.0075,3377.0,3376.5,2.96158]
[1736289074596,0.0075,3377.0,3376.3,37.8611894]
[1736289074597,0.26233863,3377.3,3376.3,2.8611894]
[1736289074796,0.27531898,3376.9,3376.6,2.96151]
[1736289074998,0.0075,3376.8,3376.7,35.7753]
[1736289075399,0.0075,3377.2,3376.7,35.7753]
[1736289075810,0.0075,3377.0,3376.7,35.7753]
[1736289076238,0.0075,3377.0,3376.7,38.73676]
[1736289076445,0.0075,3376.8,3376.7,35.7753]
[1736289076941,0.28282613,3376.8,3376.7,35.7753]
[1736289078251,0.28282613,3376.8,3376.7,38.73677]
[1736289078411,0.28282613,3376.8,3376.7,35.7753]
[1736289081405,0.28282613,3376.8,3376.7,38.73677]
[1736289082578,0.28282613,3376.8,3376.7,35.7753]
[1736289084235,0.28282613,3376.8,3376.7,36.22775137]
[1736289086979,0.27532613,3376.8,3376.7,39.21162137]
[1736289087338,0.28282613,3376.8,3376.7,39.21162137]
[1736289087535,1.48091014,3377.9,3377.4,2.96085]
[1736289087536,0.27532613,3377.8,3377.4,2.96085]
[1736289087855,0.05668014,3377.7,3377.6,2.96068]
[1736289088038,0.05668014,3377.7,3377.6,3.33947851]
[1736289088039,0.33200627,3377.7,3377.6,3.33947851]
[1736289088238,0.33200627,3377.7,3377.6,4.13717851]
[1736289088485,0.33950627,3377.7,3377.6,4.13717851]
[1736289088683,0.33950627,3377.7,3377.6,39.13717851]
[1736289088898,0.27532613,3377.7,3377.6,39.13717851]
[1736289089357,0.0075,3377.7,3377.6,39.13717851]
[1736289089935,0.0075,3377.9,3377.8,2.96046]
[1736289090139,0.0075,3377.9,3377.8,5.8216494]
[1736289090402,0.2832579,3377.9,3377.8,5.8216494]
[1736289091895,0.0075,3378.5,3377.8,5.8216494]
[1736289092049,0.0075,3378.5,3377.9,2.9899801]
[1736289092248,0.0075,3378.3,3377.9,2.9899801]
[1736289092474,0.0075,3378.3,3377.9,4.13715603]
[1736289092673,0.0075,3378.1,3377.9,4.13715603]
[1736289093350,0.06490176,3378.0,3377.9,2.9899801]
[1736289093768,0.0075,3378.0,3377.9,3.8066801]
[1736289097883,0.0075,3378.0,3377.9,3.77708]
[1736289114400,0.0075,3378.0,3377.9,3.80667655]
[1736289120672,0.0075,3378.0,3377.9,3.80667473]
[1736289120986,0.0075,3378.0,3377.9,4.88165611]
[1736289122079,0.0075,3378.0,3377.9,7.88165611]
[1736289122273,0.0075,3378.0,3377.9,7.85206138]
[1736289122771,1.21857151,3379.5,3378.5,0.8294]
[1736289123090,1.21857151,3379.5,3378.5,3.70217854]
[1736289123245,0.0075,3379.3,3378.7,2.95971]
[1736289123445,0.0075,3379.3,3378.9,2.9595]
[1736289123639,0.0075,3379.3,3379.0,2.95945]
[1736289123840,0.0075,3379.1,3379.0,2.98904018]
[1736289124145,0.27699579,3379.2,3379.1,2.95936]
[1736289124391,0.33634609,3379.2,3379.1,2.95936]
[1736289125093,0.34384609,3379.2,3379.1,2.95936]
[1736289125392,0.28449579,3379.2,3379.1,2.95936]
[1736289126500,0.28449579,3379.2,3379.1,2.98894836]
[1736289127394,0.0075,3379.2,3379.1,2.98894836]
[1736289127600,0.0075,3379.2,3379.1,3.6667462]
[1736289130303,0.0075,3379.2,3379.1,4.24760032]
[1736289130695,4.45157151,3380.4,3379.1,1.28824032]
[1736289130863,4.21857151,3380.4,3379.2,0.8086]
[1736289131063,4.21857151,3380.4,3379.3,0.52654549]
[1736289131064,0.0075,3380.2,3379.3,0.52654549]
[1736289131647,0.0605022,3380.1,3379.3,0.52654549]
[1736289131895,0.33673195,3380.1,3379.5,2.95893]
[1736289132098,0.0075,3380.0,3379.6,2.95891]
[1736289132397,0.0680022,3380.0,3379.6,2.95891]
[1736289132598,0.0075,3379.8,3379.6,3.30449719]
[1736289132805,0.0075,3379.8,3379.7,0.02958365]
[1736289132972,0.0075,3379.8,3379.7,2.98842365]
[1736289133173,0.0075,3380.5,3379.7,2.98842365]
[1736289133370,0.0075,3380.3,3379.7,2.98842365]
[1736289133757,4.40965151,3380.6,3379.7,0.02958365]
[1736289133758,0.0075,3380.1,3379.7,0.02958365]
[1736289133967,0.0075,3380.1,3379.9,2.95866]
[1736289134299,1.45157151,3380.6,3380.0,0.02958131]
[1736289134300,0.0075,3380.5,3380.0,0.02958131]
[1736289134473,0.0075,3380.5,3380.0,2.98807131]
[1736289134676,0.0075,3380.5,3380.1,2.95849]
[1736289134893,0.27592674,3380.4,3380.2,0.029581]
[1736289135226,0.27592674,3380.4,3380.2,2.95833]
[1736289135511,0.27592674,3380.3,3380.2,2.98791119]
[1736289135878,1.21857151,3380.9,3380.2,2.98791119]
[1736289136065,1.21857151,3380.9,3380.2,0.85248119]
[1736289136271,0.0075,3380.8,3380.2,2.98795119]
[1736289136471,0.2833154,3380.8,3380.2,0.02958119]
[1736289136685,0.2833154,3380.8,3380.3,2.95829]
[1736289136910,0.2833154,3380.8,3380.4,0.02957898]
[1736289137082,0.0075,3380.6,3380.4,0.02957898]
[1736289138014,0.233,3381.2,3380.4,0.02957898]
[1736289138380,0.233,3381.2,3380.0,0.8229]
[1736289138381,0.0075,3381.2,3380.6,2.95798]
[1736289138536,0.27562909,3381.1,3380.7,0.02957623]
[1736289138735,0.0075,3381.0,3380.7,0.02957623]
[1736289138886,0.28312909,3381.0,3380.7,0.02957623]
[1736289139288,0.28312909,3381.0,3380.8,2.95785]
[1736289139289,0.27562909,3381.0,3380.8,2.95785]
[1736289139589,0.27562909,3381.0,3380.5,0.8229]
[1736289139590,1.21857151,3381.5,3380.9,2.98736401]
[1736289140211,0.0075,3381.3,3380.9,2.98736401]
[1736289140702,0.0075,3381.1,3380.9,2.98736401]
[1736289140886,0.27542346,3381.2,3381.1,2.95761]
[1736289141084,0.27542346,3381.2,3381.1,3.76731]
[1736289141085,0.28292346,3381.2,3381.1,3.76731]
[1736289141289,0.07019699,3381.2,3381.1,3.76731]
[1736289141516,0.0075,3381.2,3381.1,3.76731]
[1736289142047,0.27528389,3381.7,3381.1,1.21600216]
[1736289142249,0.27528389,3381.7,3381.5,2.95725]
[1736289142404,1.21857151,3382.2,3381.6,0.02956768]
[1736289142605,0.06269699,3381.6,3381.5,2.95725]
[1736289142833,1.21857151,3382.2,3381.5,2.95725]
[1736289143158,0.0075,3382.0,3381.3,2.95744]
[1736289143322,0.0075,3382.0,3381.2,2.95752]
[1736289143323,0.0075,3382.0,3381.4,3.6674491]
[1736289143505,0.0075,3382.0,3381.5,2.95724]
[1736289144023,0.0075,3382.4,3381.6,0.02956566]
[1736289144218,0.0075,3382.4,3381.6,2.98672566]
[1736289144547,0.0075,3382.2,3381.7,2.95702]
[1736289144763,0.0075,3382.2,3381.8,0.02956558]
[1736289144922,0.0075,3382.0,3381.8,0.02956558]
[1736289145253,0.0075,3382.0,3381.8,2.98652558]
[1736289145553,0.0075,3382.0,3381.8,3.36795814]
[1736289145900,0.0075,3382.7,3381.9,2.95689]
[1736289146059,0.0075,3382.7,3382.0,0.02956448]
[1736289146221,0.0075,3382.5,3382.0,0.02956448]
[1736289146810,0.33748999,3382.4,3382.0,0.02956448]
[1736289147329,0.274793,3382.3,3382.1,2.95673]
[1736289147826,3.26133863,3383.0,3382.2,0.02956238]
[1736289148165,0.0075,3382.9,3382.2,0.02956238]
[1736289148459,0.28215888,3382.9,3382.3,2.95655]
[1736289148611,0.28215888,3382.9,3382.4,0.02956091]
[1736289149023,0.0075,3382.7,3382.4,0.02956091]
[1736289149668,0.0075,3383.0,3382.4,0.02956091]
[1736289150011,0.0075,3382.8,3382.4,0.02956091]
[1736289150258,0.0075,3382.8,3382.5,35.0]
[1736289150628,0.27455284,3382.7,3382.6,0.0295603]
[1736289150827,0.28205284,3382.7,3382.6,0.0295603]
[1736289151270,0.0075,3382.7,3382.6,0.0295603]
[1736289152087,0.0075,3382.7,3382.6,0.0273603]
[1736289153770,2.9557,3383.3,3382.4,2.98382879]
[1736289153966,0.06401269,3382.7,3382.6,35.0]
[1736289154168,0.0075,3383.4,3382.7,2.95621]
[1736289154386,0.0075,3383.2,3382.8,0.0295553]
[1736289154874,0.0075,3383.0,3382.6,35.0]
[1736289155075,0.0075,3383.0,3382.2,0.761]
[1736289155281,2.91081717,3383.0,3381.9,0.60328682]
[1736289155596,0.0075,3382.2,3381.9,35.0]
[1736289155799,2.96415,3382.2,3381.9,35.0]
[1736289156179,0.0075,3382.0,3381.9,35.0]
[1736289156384,0.0075,3381.8,3381.0,0.761]
[1736289156570,0.0075,3381.8,3380.5,2.95807]
[1736289156914,0.0075,3381.6,3381.1,35.0]
[1736289157189,0.0075,3381.4,3381.1,35.0]
[1736289157412,0.0075,3381.2,3381.1,35.0]
[1736289157993,3.23948221,3381.2,3381.1,35.0]
[1736289158201,9.17715071,3381.2,3381.1,35.0]
[1736289158416,0.0075,3380.7,3379.8,0.761]
[1736289158621,0.0075,3380.7,3379.9,0.60144281]
[1736289158622,0.03803863,3380.7,3379.9,0.60144281]
[1736289158819,0.0075,3380.5,3380.0,35.0]
[1736289158968,2.9659,3380.2,3380.0,35.0]
[1736289159174,2.96599,3380.1,3380.0,35.0]
[1736289159511,6.0300358,3380.1,3380.0,35.0]
[1736289159813,0.0075,3380.0,3379.0,0.58162542]
[1736289159985,0.0075,3379.5,3379.0,0.58162542]
[1736289160181,0.03803863,3379.5,3379.1,35.0]
[1736289160385,0.0075,3379.3,3379.1,35.0]
[1736289160801,0.06219187,3379.2,3379.1,35.0]
[1736289161067,0.34415408,3379.2,3379.1,35.0]
[1736289161211,0.28196221,3379.2,3379.1,35.0]
[1736289161612,3.24124221,3379.2,3379.1,35.0]
[1736289162009,3.24124221,3379.2,3377.9,0.7969]
[1736289162010,2.96688,3379.1,3377.9,3.75723]
[1736289162192,0.0075,3378.9,3378.0,0.375723]
[1736289162396,0.0075,3378.7,3378.5,35.0]
[1736289163081,0.0075,3378.9,3378.5,35.0]
[1736289163283,0.06969187,3378.6,3378.5,35.0]
[1736289163527,0.0075,3378.6,3378.5,35.0]
[1736289168565,2.9673,3378.6,3378.5,35.0]
[1736289168844,3.02682441,3378.6,3378.5,35.0]
[1736289169340,0.0075,3378.5,3377.7,0.5816185]
[1736289169543,0.03803863,3378.5,3377.7,0.5816185]
[1736289169882,0.0075,3378.3,3377.8,35.0]
[1736289170163,0.03803863,3378.3,3377.8,35.0]
[1736289170362,0.0075,3378.3,3377.8,35.0]
[1736289170516,0.0075,3378.4,3377.8,35.0]
[1736289170720,0.0075,3378.1,3377.8,35.0]
[1736289172541,0.0075,3378.4,3377.8,35.0]
[1736289173239,0.0075,3378.4,3377.8,36.38659634]
[1736289173440,0.14448377,3379.6,3378.1,2.96023]
[1736289173441,0.03053863,3378.9,3378.1,2.96023]
[1736289173848,0.06702441,3378.8,3378.2,35.0]
[1736289176477,0.0075,3378.6,3378.2,35.0]
[1736289176984,0.0075,3378.4,3378.2,35.0]
[1736289177871,2.87277854,3378.7,3378.2,35.0]
[1736289177872,0.0075,3378.7,3378.2,35.0]
[1736289178168,0.06674261,3378.3,3378.2,35.0]
[1736289178370,0.0075,3378.3,3378.2,35.0]
[1736289178828,0.06674261,3378.3,3378.2,35.0]
[1736289185351,0.0075,3378.3,3378.2,35.0]
[1736289185897,0.0075,3378.2,3378.0,2.96032]
[1736289186253,0.0075,3378.7,3378.1,35.0]
[1736289187067,0.0075,3378.5,3378.1,35.0]
[1736289187264,0.0075,3378.3,3378.1,35.0]
[1736289187892,0.28343147,3378.2,3378.1,35.0]
[1736289188898,0.28123147,3378.2,3378.1,37.8611894]
[1736289190098,0.28123147,3378.2,3378.1,40.8214294]
[1736289190804,0.28123147,3378.2,3378.1,37.8611894]
[1736289194003,0.28123147,3378.2,3378.1,40.8214294]
[1736289199419,0.0075,3378.1,3377.8,2.9605]
[1736289199719,0.0075,3377.9,3377.8,2.9605]
[1736289200013,0.0075,3377.9,3377.8,37.9605]
[1736289200438,0.03053863,3378.6,3377.8,37.9605]
[1736289200439,0.0075,3378.5,3377.8,35.0]
[1736289200923,0.0075,3378.3,3377.8,35.0]
[1736289201617,0.0075,3378.1,3377.8,35.0]
[1736289201991,0.0075,3377.9,3377.8,35.0]
[1736289202715,0.28488907,3377.9,3377.8,35.0]
[1736289206584,0.28488907,3377.9,3377.8,36.02606253]
[1736289207920,0.28488907,3377.9,3377.8,37.56647563]
[1736289215944,0.33978536,3377.9,3377.8,37.56647563]
[1736289223155,0.33978536,3377.9,3377.8,36.02606253]
[1736289223761,0.33978536,3377.9,3377.8,1.02606253]
[1736289225149,6.88073399,3377.9,3377.8,1.02606253]
[1736289225452,6.85019536,3377.9,3377.8,1.02606253]
[1736289225820,6.85019536,3377.9,3376.9,3.5540763]
[1736289225821,2.96815,3377.7,3376.9,3.5540763]
[1736289226013,0.0075,3377.5,3376.9,3.5540763]
[1736289226210,0.0075,3377.5,3376.9,2.7656763]
[1736289226548,0.0075,3377.3,3377.0,35.0]
[1736289227121,0.0075,3377.1,3376.9,2.7656763]
[1736289227336,0.03803863,3377.1,3376.5,4.18661423]
[1736289227553,0.0075,3376.9,3376.5,4.18661423]
[1736289227760,0.0075,3376.9,3376.6,35.0]
[1736289228117,0.0075,3376.7,3376.6,35.0]
[1736289228716,0.0075,3377.1,3376.6,35.0]
[1736289229218,0.0075,3376.9,3376.6,35.0]
[1736289229844,0.0075,3376.7,3376.6,35.0]
[1736289230045,0.0075,3376.7,3376.6,37.96155]
[1736289230228,0.0075,3376.7,3376.6,35.0]
[1736289230535,0.0075,3377.1,3376.6,35.0]
[1736289231059,0.03053863,3377.2,3376.6,35.0]
[1736289231060,0.0075,3376.9,3376.6,35.0]
[1736289231764,0.0075,3376.7,3376.6,35.0]
[1736289232693,0.0075,3377.1,3376.6,35.0]
[1736289232992,0.0075,3376.9,3376.6,35.0]
[1736289233557,0.0075,3376.7,3376.6,35.0]
[1736289233759,0.0075,3376.7,3376.4,3.75013]
[1736289233962,0.0075,3376.7,3376.4,4.18459359]
[1736289234268,0.0075,3376.7,3376.6,35.0]
[1736289234586,0.0075,3377.1,3376.6,35.0]
[1736289234957,0.0075,3376.9,3376.6,35.0]
[1736289235665,0.0075,3376.7,3376.6,35.0]
[1736289236346,0.03053863,3377.0,3376.6,35.0]
[1736289236347,0.0075,3376.9,3376.6,35.0]
[1736289236750,0.0075,3376.7,3376.6,35.0]
[1736289237165,0.27546396,3376.7,3376.6,35.65712587]
[1736289237401,0.27546396,3376.7,3376.6,39.38807587]
[1736289237546,1.23538825,3377.5,3377.4,2.96085]
[1736289237745,1.23538825,3377.5,3377.4,3.73025]
[1736289237974,0.0468953,3377.5,3377.4,4.399378]
[1736289238290,0.0075,3378.7,3378.1,2.96016]
[1736289238594,2.95907,3379.5,3377.7,2.9605]
[1736289238595,0.04715322,3378.6,3378.5,2.95989]
[1736289238752,2.90331717,3379.7,3378.8,2.95957]
[1736289238950,2.90331717,3379.7,3378.8,2.98916263]
[1736289239190,3.04452807,3379.6,3378.9,35.0]
[1736289239486,0.04452807,3379.6,3378.9,35.0]
[1736289239687,2.90331717,3379.7,3379.0,2.98904261]
[1736289240204,2.90331717,3379.7,3378.6,0.767]
[1736289240205,1.23549137,3379.2,3379.1,2.95936]
[1736289240559,1.28022201,3379.2,3379.1,2.95936]
[1736289241223,1.28022201,3379.2,3379.1,4.60422709]
[1736289241691,0.04473064,3379.2,3379.1,4.60422709]
[1736289242004,0.0075,3380.1,3379.5,2.95901]
[1736289242301,0.04574572,3380.0,3379.5,2.95901]
[1736289242513,4.23549137,3380.2,3379.6,0.02958462]
[1736289242812,0.0075,3379.8,3379.1,1.34893109]
[1736289242968,0.0075,3379.8,3379.2,0.02958847]
[1736289243163,0.0075,3379.6,3379.1,1.34893109]
[1736289243369,0.0075,3379.6,3379.1,0.767]
[1736289243570,0.0075,3379.4,3378.5,0.7514]
[1736289243827,0.0075,3379.4,3378.7,0.59128642]
[1736289243980,0.0075,3379.2,3378.7,0.59128642]
[1736289244518,0.0075,3379.2,3378.5,0.7514]
[1736289244670,0.0075,3379.0,3378.5,0.7514]
[1736289244865,0.0075,3378.8,3378.5,0.7514]
[1736289245116,0.0075,3378.8,3378.4,0.60614852]
[1736289245298,0.04579563,3378.7,3378.4,0.60614852]
[1736289245504,0.0075,3378.6,3378.3,2.96006]
[1736289246369,0.0075,3379.1,3378.3,2.96006]
[1736289246913,0.0075,3378.9,3378.3,3.56449139]
[1736289247417,0.0075,3379.1,3378.3,3.56449139]
[1736289247627,0.0075,3378.7,3378.3,3.56449139]
[1736289248020,0.0075,3378.5,3378.3,3.56449139]
[1736289249434,0.0075,3379.1,3378.3,3.56449139]
[1736289249807,0.0075,3378.9,3378.3,3.56449139]
[1736289250002,0.0075,3378.9,3378.3,0.60443139]
[1736289250202,0.0075,3378.9,3378.4,2.98955506]
[1736289250408,0.0075,3378.7,3378.4,2.98955506]
[1736289250933,0.0075,3378.5,3378.4,2.95996]
[1736289251635,0.0075,3379.2,3378.4,2.95996]
[1736289251835,0.0075,3379.1,3378.5,0.02959506]
[1736289252142,0.08366788,3379.1,3378.4,2.95996]
[1736289252320,0.05312925,3379.1,3378.4,2.95996]
[1736289254198,0.05312925,3379.1,3378.5,0.02959505]
[1736289254398,0.05312925,3379.1,3378.4,2.95996]
[1736289255251,0.04562925,3379.1,3379.0,2.95945]
[1736289255756,0.0075,3379.6,3379.0,2.95945]
[1736289256052,0.231,3379.7,3379.0,2.95945]
[1736289256053,0.04562925,3379.1,3379.0,2.95945]
[1736289256384,0.231,3379.7,3379.0,2.95945]
[1736289256564,0.04562925,3379.1,3378.7,0.765]
[1736289256855,4.19399137,3380.1,3378.7,0.765]
[1736289256856,1.23549137,3380.1,3378.7,0.765]
[1736289257154,0.0075,3379.9,3379.4,0.765]
[1736289257315,0.0075,3379.9,3379.5,2.95893]
[1736289257668,0.0075,3380.4,3379.5,2.95893]
[1736289257861,0.04578731,3379.8,3379.6,2.95891]
[1736289258154,0.231,3380.4,3379.7,2.95884]
[1736289258461,0.0075,3380.3,3379.7,2.95884]
[1736289258992,0.231,3380.4,3379.5,2.98856462]
[1736289258993,0.0075,3380.4,3379.5,2.98856462]
[1736289259365,0.0075,3380.4,3379.6,2.95886]
[1736289259566,0.0075,3380.4,3379.7,0.02958461]
[1736289261489,0.0075,3380.4,3379.7,2.98840461]
[1736289261665,0.0075,3380.4,3379.7,2.95882]
[1736289262188,0.231,3380.7,3379.8,0.02958277]
[1736289262363,0.231,3380.7,3379.8,0.4260102]
[1736289262558,0.0075,3380.6,3379.8,0.4260102]
[1736289263152,0.0075,3380.6,3379.8,3.3847502]
[1736289264294,0.0075,3380.4,3379.7,0.8118]
[1736289264495,0.0075,3380.4,3379.7,0.8413811]
[1736289265664,0.0075,3380.4,3379.7,0.8118]
[1736289265869,2.98849863,3380.7,3379.7,3.77063]
[1736289266174,0.0075,3380.5,3379.7,3.77063]
[1736289266357,0.0075,3380.5,3379.8,0.43709688]
[1736289266824,0.0075,3380.3,3379.8,0.43709688]
[1736289267312,0.0075,3380.1,3379.8,0.43709688]
[1736289267620,0.0075,3380.1,3379.8,2.95874]
[1736289268974,0.0075,3380.1,3379.9,0.02958153]
[1736289269214,0.0075,3380.6,3379.9,0.02958153]
[1736289269515,0.0075,3379.9,3379.8,2.95874]
[1736289270095,0.0075,3380.6,3379.8,37.95874]
[1736289270290,0.04782472,3380.5,3379.8,39.52690613]
[1736289270479,0.0075,3380.4,3379.9,0.02958152]
[1736289270872,0.0075,3380.4,3379.8,2.95874]
[1736289270873,0.04782472,3380.3,3379.8,2.95874]
[1736289271203,0.04782472,3380.3,3380.0,35.0]
[1736289271403,0.0075,3380.1,3380.0,35.0]
[1736289271626,0.0075,3380.1,3380.0,37.8611894]
[1736289271981,0.0075,3380.7,3380.0,37.8611894]
[1736289272177,0.05532472,3380.1,3380.0,37.8611894]
[1736289272407,0.0075,3380.1,3380.0,37.8611894]
[1736289277665,0.0075,3380.1,3380.0,40.8197594]
[1736289278762,0.0075,3380.1,3380.0,37.8611894]
[1736289279269,0.2828558,3380.1,3380.0,37.8611894]
[1736289282173,0.2828558,3380.1,3380.0,2.8611894]
[1736289282368,0.0075,3380.0,3379.7,0.8118]
[1736289282532,0.0075,3380.0,3379.9,35.0]
[1736289282951,0.2828558,3380.0,3379.9,35.0]
[1736289284182,0.2828558,3380.0,3379.9,37.95866]
[1736289292109,0.0075,3380.8,3380.0,2.9585]
[1736289292307,0.0075,3380.8,3380.1,2.89076972]
[1736289292605,0.0075,3380.6,3380.1,2.89076972]
[1736289293206,0.0075,3380.4,3380.1,2.89076972]
[1736289294006,0.27659039,3380.3,3380.2,2.9584]
[1736289294158,0.27659039,3380.3,3380.2,5.8195894]
[1736289294358,0.28409039,3380.3,3380.2,5.8195894]
[1736289294573,0.28409039,3380.3,3380.2,6.6016894]
[1736289295403,0.28409039,3380.3,3380.2,3.7405]
[1736289295404,0.33294571,3380.3,3380.2,3.7405]
[1736289295706,0.32544571,3380.3,3380.2,38.7405]
[1736289296061,0.27659039,3380.3,3380.2,38.7405]
[1736289296278,0.0075,3381.1,3380.6,2.95801]
[1736289296708,0.0075,3380.9,3380.6,2.95801]
[1736289297001,0.0075,3380.9,3380.7,0.295801]
[1736289297206,0.0075,3380.9,3380.7,4.023261]
[1736289297207,0.05650489,3380.8,3380.7,4.023261]
[1736289297394,0.32548355,3380.8,3380.7,4.023261]
[1736289297591,0.28397866,3380.8,3380.7,4.023261]
[1736289297903,0.38794025,3381.6,3380.7,39.023261]
[1736289298077,0.0075,3381.5,3380.9,2.95776]
[1736289298560,0.38794025,3381.6,3381.4,2.95734]
[1736289298764,0.38794025,3381.6,3381.5,0.8268]
[1736289299159,0.39544025,3381.6,3381.5,35.8268]
[1736289299506,0.0075,3381.6,3381.5,35.8268]
[1736289299664,0.0075,3381.6,3381.5,38.6879894]
[1736289300332,1.85323706,3382.2,3381.5,38.6879894]
[1736289301097,0.0075,3382.1,3381.5,38.6879894]
[1736289301419,0.0075,3382.1,3381.5,37.8611894]
[1736289301729,0.0075,3381.9,3380.9,2.06434061]
[1736289301895,0.0075,3381.5,3380.9,1.23754061]
[1736289302102,2.96478,3381.5,3380.9,1.23754061]
[1736289302423,2.96478,3381.5,3380.8,1.23754061]
[1736289303182,2.96478,3381.5,3380.9,35.0]
[1736289305329,0.0075,3381.5,3380.9,35.0]
[1736289305532,5.98747863,3381.9,3381.0,5.84843338]
[1736289305829,0.0075,3381.8,3381.0,5.8188594]
[1736289306012,0.03803863,3381.8,3381.1,0.02957232]
[1736289306217,0.0075,3381.8,3381.1,0.02957232]
[1736289306828,0.03803863,3381.8,3381.0,5.8188594]
[1736289307033,0.0075,3381.8,3381.1,0.02957232]
[1736289307535,0.03803863,3381.8,3381.0,5.8188594]
[1736289308547,2.99504863,3381.8,3381.0,2.8611894]
[1736289308848,2.99504863,3381.8,3380.9,35.0]
[1736289311117,2.99504863,3381.8,3380.9,37.95777]
[1736289311323,0.0075,3381.6,3380.9,37.95777]
[1736289311764,0.0075,3381.4,3380.9,37.95777]
[1736289312790,0.0075,3381.7,3381.0,0.02957234]
[1736289313087,0.0075,3381.2,3381.0,2.98721234]
[1736289313886,0.0075,3381.8,3381.0,2.98721234]
[1736289314389,0.0075,3381.6,3381.0,2.98721234]
[1736289314890,0.0075,3381.8,3381.0,2.98721234]
[1736289315091,0.0075,3381.4,3381.0,2.95764]
[1736289315402,0.0075,3381.2,3381.1,0.02957236]
[1736289315593,0.0075,3381.2,3381.1,2.98718236]
[1736289315973,0.0075,3381.8,3381.1,2.98718236]
[1736289316287,0.05783407,3381.2,3381.1,2.98718236]
[1736289316491,0.0075,3381.2,3381.1,2.98718236]
[1736289316900,0.0075,3381.2,3381.1,37.98718236]
[1736289317099,0.0075,3381.2,3381.1,40.8187994]
[1736289317267,0.0075,3381.2,3381.1,37.8611894]